[Event "11th LCC Super Blitz KO 2019"]
[Site "London"]
[Date "2019.12.08"]
[Round "1.1"]
[White "Pert, Nicholas"]
[Black "Beinoras, Mindaugas"]
[Result "0-1"]
[ECO "D20"]
[WhiteElo "2560"]
[BlackElo "2350"]
[Annotator "ChessBase"]
[PlyCount "124"]
[EventDate "2019.12.08"]
[EventType "k.o."]
[EventCountry "ENG"]
[SourceTitle "playchess.com"]
[Source "ChessBase"]
[SourceQuality "1"]
[TimeControl "180+2"]

1. d4 {[%emt 0:00:00]} d5 {[%emt 0:00:00]} 2. c4 {[%emt 0:00:00]} dxc4 {[%emt 0:00:01]} 3. e3 {[%emt 0:00:01]} Be6 {[%emt 0:00:01]} 4. Ne2 {[%emt 0:00:02]} Nf6 {[%emt 0:00:11]} 5. Nf4 {[%emt 0:00:05]} Bf5 {[%emt 0:00:11]} 6. Bxc4 {[%emt 0:00:04]} e6 {[%emt 0:00:01]} 7. Nc3 {[%emt 0:00:03]} Nbd7 {[%emt 0:00:04]} 8. Qe2 {[%emt 0:00:14]} a6 {[%emt 0:00:09]} 9. e4 {[%emt 0:00:03]} Bg6 {[%emt 0:00:05]} 10. e5 {[%emt 0:00:03]} Ng8 {[%emt 0:00:06]} 11. d5 {[%emt 0:00:12]} Nb6 {[%emt 0:00:31]} 12. dxe6 {[%emt 0:00:08]} Nxc4 {[%emt 0:00:17]} 13. Qxc4 {[%emt 0:00:02]} c6 {[%emt 0:00:06]} 14. O-O {[%emt 0:00:40]} Qe7 {[%emt 0:00:20]} 15. exf7+ {[%emt 0:00:06]} Qxf7 {[%emt 0:00:08]} 16. e6 {[%emt 0:00:04]} Qf5 {[%emt 0:00:00]} 17. Be3 {[%emt 0:00:10]} Bd6 {[%emt 0:00:05]} 18. Rad1 {[%emt 0:00:03]} O-O-O {[%emt 0:00:22]} 19. Bb6 {[%emt 0:00:15]} Bc7 {[%emt 0:00:21]} 20. Rxd8+ {[%emt 0:00:04]} Bxd8 {[%emt 0:00:01]} 21. Bxd8 {[%emt 0:00:05]} Kxd8 {[%emt 0:00:02]} 22. Qd4+ {[%emt 0:00:04]} Kc8 {[%emt 0:00:07]} 23. Qxg7 {[%emt 0:00:10]} Qf6 {[%emt 0:00:01]} 24. Qd7+ {[%emt 0:00:02]} Kb8 {[%emt 0:00:00]} 25. Qd6+ {[%emt 0:00:07]} Ka8 {[%emt 0:00:06]} 26. Rd1 {[%emt 0:00:04]} Ne7 {[%emt 0:00:02]} 27. Nxg6 {[%emt 0:00:09]} Nxg6 {[%emt 0:00:03]} 28. h3 {[%emt 0:00:11]} Re8 {[%emt 0:00:02]} 29. Re1 {[%emt 0:00:04]} Qg5 {[%emt 0:00:04]} 30. Ne4 {[%emt 0:00:10]} Qf5 {[%emt 0:00:18]} 31. Nc5 {[%emt 0:00:04]} Nf4 {[%emt 0:00:05]} 32. Re3 {[%emt 0:00:18]} Rg8 {[%emt 0:00:03]} 33. Rg3 {[%emt 0:00:02]} Ne2+ {[%emt 0:00:02]} 34. Kh2 {[%emt 0:00:01]} Nxg3 {[%emt 0:00:02]} 35. fxg3 {[%emt 0:00:01]} Qg5 {[%emt 0:00:06]} 36. Qc7 {[%emt 0:00:03]} Qxc5 {[%emt 0:00:02]} 37. e7 {[%emt 0:00:01]} Qd5 {[%emt 0:00:03]} 38. Qf4 {[%emt 0:00:03]} Re8 {[%emt 0:00:01]} 39. Qh6 {[%emt 0:00:03]} Qd7 {[%emt 0:00:01]} 40. Qxh7 {[%emt 0:00:01]} Qxe7 {[%emt 0:00:01]} 41. Qg6 {[%emt 0:00:01]} Qe6 {[%emt 0:00:00]} 42. Qg5 {[%emt 0:00:01]} Qe5 {[%emt 0:00:01]} 43. Qd2 {[%emt 0:00:01]} c5 {[%emt 0:00:00]} 44. h4 {[%emt 0:00:01]} Rg8 {[%emt 0:00:01]} 45. Qd3 {[%emt 0:00:02]} Rg4 {[%emt 0:00:05]} 46. Kh3 {[%emt 0:00:03]} Qe6 {[%emt 0:00:02]} 47. Kh2 {[%emt 0:00:01]} c4 {[%emt 0:00:02]} 48. Qf3 {[%emt 0:00:01]} Re4 {[%emt 0:00:06]} 49. h5 {[%emt 0:00:05]} Rg4 {[%emt 0:00:06]} 50. Qf8+ {[%emt 0:00:02]} Ka7 {[%emt 0:00:02]} 51. Qc5+ Kb8 52. Qf8+ {[%emt 0:00:02]} Kc7 {[%emt 0:00:01]} 53. Qc5+ {[%emt 0:00:00]} Kd7 {[%emt 0:00:00]} 54. Qb4 {[%emt 0:00:04]} Qd5 {[%emt 0:00:02]} 55. h6 {[%emt 0:00:09]} Re4 {[%emt 0:00:02]} 56. Qc3 {[%emt 0:00:12]} Qh5+ {[%emt 0:00:04]} 57. Kg1 {[%emt 0:00:01]} Qxh6 {[%emt 0:00:01]} 58. Qb4 {[%emt 0:00:03]} Qe3+ {[%emt 0:00:03]} 59. Kh2 {[%emt 0:00:01]} Qh6+ {[%emt 0:00:01]} 60. Kg1 {[%emt 0:00:01]} Qc6 {[%emt 0:00:01]} 61. Qd2+ {[%emt 0:00:01]} Kc7 {[%emt 0:00:01]} 62. Qf2 {[%emt 0:00:01]} Qb6 {[%emt 0:00:02]} 0-1

[Event "11th LCC Super Blitz KO 2019"]
[Site "London"]
[Date "2019.12.08"]
[Round "1.2"]
[White "McShane, Luke J"]
[Black "Clarke, Brandon G I"]
[Result "1/2-1/2"]
[ECO "B25"]
[WhiteElo "2677"]
[BlackElo "2437"]
[Annotator "ChessBase"]
[PlyCount "93"]
[EventDate "2019.12.08"]
[EventType "k.o."]
[EventCountry "ENG"]
[SourceTitle "playchess.com"]
[Source "ChessBase"]
[SourceQuality "1"]
[TimeControl "180+2"]

1. e4 {[%emt 0:00:00]} c5 {[%emt 0:00:00]} 2. Nc3 {[%emt 0:00:00]} Nc6 {[%emt 0:00:00]} 3. g3 {[%emt 0:00:01]} g6 {[%emt 0:00:00]} 4. Bg2 {[%emt 0:00:01]} Bg7 {[%emt 0:00:01]} 5. d3 {[%emt 0:00:01]} d6 {[%emt 0:00:01]} 6. Be3 {[%emt 0:00:01]} e5 {[%emt 0:00:00]} 7. Nh3 {[%emt 0:00:04]} Nge7 {[%emt 0:00:04]} 8. f4 {[%emt 0:00:04]} Nd4 {[%emt 0:00:11]} 9. O-O {[%emt 0:00:05]} O-O {[%emt 0:00:06]} 10. Qd2 {[%emt 0:00:11]} Bg4 {[%emt 0:00:35]} 11. Nd1 {[%emt 0:00:30]} Qd7 {[%emt 0:00:16]} 12. Ndf2 {[%emt 0:00:25]} Bf3 {[%emt 0:00:02]} 13. c3 {[%emt 0:00:34]} Bxg2 {[%emt 0:00:02]} 14. Kxg2 {[%emt 0:00:01]} Ne6 {[%emt 0:00:11]} 15. fxe5 {[%emt 0:00:01]} dxe5 {[%emt 0:00:04]} 16. Ng5 {[%emt 0:00:11]} Nxg5 {[%emt 0:00:09]} 17. Bxg5 {[%emt 0:00:01]} Nc6 {[%emt 0:00:07]} 18. Qe2 {[%emt 0:00:06]} f6 {[%emt 0:00:06]} 19. Be3 {[%emt 0:00:01]} b6 {[%emt 0:00:01]} 20. g4 {[%emt 0:00:06]} Rad8 {[%emt 0:00:01]} 21. Rad1 {[%emt 0:00:02]} Qe6 {[%emt 0:00:01]} 22. a3 {[%emt 0:00:01]} Rf7 {[%emt 0:00:38]} 23. h3 {[%emt 0:00:07]} a5 {[%emt 0:00:05]} 24. Rde1 {[%emt 0:00:13]} Rfd7 {[%emt 0:00:01]} 25. Bc1 {[%emt 0:00:01]} a4 {[%emt 0:00:13]} 26. Be3 {[%emt 0:00:06]} Na5 {[%emt 0:00:02]} 27. Rd1 {[%emt 0:00:05]} Nb3 {[%emt 0:00:03]} 28. Rg1 {[%emt 0:00:13]} Rd6 {[%emt 0:00:05]} 29. Kh1 {[%emt 0:00:02]} Qd7 {[%emt 0:00:05]} 30. Rdf1 {[%emt 0:00:10]} b5 {[%emt 0:00:04]} 31. Rg3 {[%emt 0:00:02]} Qc6 {[%emt 0:00:04]} 32. Rf3 {[%emt 0:00:08]} c4 {[%emt 0:00:02]} 33. dxc4 {[%emt 0:00:02]} Qxc4 {[%emt 0:00:01]} 34. Qxc4+ {[%emt 0:00:07]} bxc4 {[%emt 0:00:01]} 35. Kg2 {[%emt 0:00:02]} Nd2 {[%emt 0:00:08]} 36. Bxd2 {[%emt 0:00:02]} Rxd2 {[%emt 0:00:00]} 37. Kg3 {[%emt 0:00:08]} Rxb2 {[%emt 0:00:03]} 38. Nd1 {[%emt 0:00:00]} Rb3 {[%emt 0:00:08]} 39. Ne3 {[%emt 0:00:04]} Rxc3 {[%emt 0:00:03]} 40. Nd5 {[%emt 0:00:01]} Rxf3+ {[%emt 0:00:02]} 41. Kxf3 {[%emt 0:00:02]} Rb8 {[%emt 0:00:04]} 42. Rc1 {[%emt 0:00:03]} Rb3+ {[%emt 0:00:01]} 43. Kg2 {[%emt 0:00:04]} Rxa3 {[%emt 0:00:03]} 44. Rxc4 {[%emt 0:00:01]} h5 {[%emt 0:00:14]} 45. gxh5 {[%emt 0:00:06]} gxh5 {[%emt 0:00:01]} 46. Rc7 {[%emt 0:00:06]} Kf8 {[%emt 0:00:10]} 47. Ra7 {[%emt 0:00:02]} 1/2-1/2

[Event "11th LCC Super Blitz KO 2019"]
[Site "London"]
[Date "2019.12.08"]
[Round "1.2"]
[White "Howell, David W L"]
[Black "Willow, Jonah B"]
[Result "1-0"]
[ECO "B27"]
[WhiteElo "2676"]
[BlackElo "2355"]
[Annotator "ChessBase"]
[PlyCount "47"]
[EventDate "2019.12.08"]
[EventType "k.o."]
[EventCountry "ENG"]
[SourceTitle "playchess.com"]
[Source "ChessBase"]
[SourceQuality "1"]
[TimeControl "180+2"]

1. Nf3 {[%emt 0:00:01]} c5 {[%emt 0:00:00]} 2. c3 {[%emt 0:00:07]} g6 {[%emt 0:00:02]} 3. e4 {[%emt 0:00:04]} Nf6 {[%emt 0:00:10]} 4. e5 {[%emt 0:00:20]} Nd5 {[%emt 0:00:01]} 5. d4 {[%emt 0:00:05]} cxd4 {[%emt 0:00:05]} 6. Qxd4 {[%emt 0:00:01]} Nc7 {[%emt 0:00:01]} 7. Qh4 {[%emt 0:00:05]} Nc6 {[%emt 0:00:10]} 8. Na3 {[%emt 0:00:08]} Ne6 {[%emt 0:00:14]} 9. Bh6 {[%emt 0:00:15]} Qc7 {[%emt 0:00:30]} 10. Bxf8 {[%emt 0:00:03]} Nxf8 {[%emt 0:00:20]} 11. Nb5 {[%emt 0:00:09]} Qb8 {[%emt 0:00:12]} 12. Qe4 {[%emt 0:00:27]} Ne6 {[%emt 0:00:06]} 13. Be2 {[%emt 0:00:14]} O-O {[%emt 0:00:05]} 14. h4 {[%emt 0:00:17]} f5 {[%emt 0:00:21]} 15. Qe3 {[%emt 0:00:07]} a6 {[%emt 0:00:26]} 16. Nbd4 {[%emt 0:00:04]} d6 {[%emt 0:00:14]} 17. Nxe6 {[%emt 0:00:23]} Bxe6 {[%emt 0:00:02]} 18. Qh6 {[%emt 0:00:05]} Nxe5 {[%emt 0:00:13]} 19. Ng5 {[%emt 0:00:02]} Rf7 {[%emt 0:00:07]} 20. Nxe6 {[%emt 0:00:02]} f4 {[%emt 0:00:07]} 21. Nxf4 {[%emt 0:00:05]} Qc8 {[%emt 0:00:11]} 22. h5 {[%emt 0:00:12]} Qf5 {[%emt 0:00:04]} 23. hxg6 {[%emt 0:00:01]} Nxg6 {[%emt 0:00:02]} 24. Nxg6 {[%emt 0:00:10]} 1-0

[Event "11th LCC Super Blitz KO 2019"]
[Site "London"]
[Date "2019.12.08"]
[Round "1.2"]
[White "Moussard, Jules"]
[Black "Hebden, Mark L"]
[Result "1-0"]
[ECO "C89"]
[WhiteElo "2598"]
[BlackElo "2433"]
[Annotator "ChessBase"]
[PlyCount "101"]
[EventDate "2019.12.08"]
[EventType "k.o."]
[EventCountry "ENG"]
[SourceTitle "playchess.com"]
[Source "ChessBase"]
[SourceQuality "1"]
[TimeControl "180+2"]

1. e4 {[%emt 0:00:00]} e5 {[%emt 0:00:00]} 2. Nf3 {[%emt 0:00:02]} Nc6 {[%emt 0:00:02]} 3. Bb5 {[%emt 0:00:02]} a6 {[%emt 0:00:02]} 4. Ba4 {[%emt 0:00:02]} Nf6 {[%emt 0:00:02]} 5. O-O {[%emt 0:00:02]} Be7 {[%emt 0:00:02]} 6. Re1 {[%emt 0:00:09]} b5 {[%emt 0:00:01]} 7. Bb3 {[%emt 0:00:00]} O-O {[%emt 0:00:01]} 8. a4 {[%emt 0:00:02]} Bb7 {[%emt 0:00:02]} 9. c3 {[%emt 0:00:09]} d5 {[%emt 0:00:01]} 10. axb5 {[%emt 0:00:12]} axb5 {[%emt 0:00:02]} 11. Rxa8 {[%emt 0:00:01]} Bxa8 {[%emt 0:00:02]} 12. exd5 {[%emt 0:00:19]} Nxd5 {[%emt 0:00:03]} 13. d4 {[%emt 0:00:01]} exd4 {[%emt 0:00:04]} 14. cxd4 {[%emt 0:00:07]} Na5 {[%emt 0:00:27]} 15. Bxd5 {[%emt 0:00:01]} Bxd5 {[%emt 0:00:05]} 16. Nc3 {[%emt 0:00:01]} Bb4 {[%emt 0:00:20]} 17. Ne5 {[%emt 0:00:22]} f6 {[%emt 0:00:12]} 18. Nd3 {[%emt 0:00:02]} Bxc3 {[%emt 0:00:17]} 19. bxc3 {[%emt 0:00:01]} Nc4 {[%emt 0:00:07]} 20. Bf4 {[%emt 0:00:16]} c6 {[%emt 0:00:01]} 21. h3 {[%emt 0:00:04]} Qd7 {[%emt 0:00:05]} 22. Nc5 {[%emt 0:00:01]} Qf5 {[%emt 0:00:01]} 23. Qg4 {[%emt 0:00:07]} Qxg4 {[%emt 0:00:07]} 24. hxg4 {[%emt 0:00:01]} g5 {[%emt 0:00:04]} 25. Bg3 {[%emt 0:00:01]} Ra8 {[%emt 0:00:02]} 26. Re7 {[%emt 0:00:11]} Rf8 {[%emt 0:00:44]} 27. f4 {[%emt 0:00:15]} h6 {[%emt 0:00:08]} 28. Kf2 {[%emt 0:00:04]} Rf7 {[%emt 0:00:01]} 29. Re8+ {[%emt 0:00:01]} Kg7 {[%emt 0:00:01]} 30. f5 {[%emt 0:00:01]} Ra7 {[%emt 0:00:06]} 31. Ne6+ {[%emt 0:00:03]} Kf7 {[%emt 0:00:09]} 32. Rc8 {[%emt 0:00:23]} Ra2+ {[%emt 0:00:02]} 33. Ke1 {[%emt 0:00:01]} Bxe6 {[%emt 0:00:03]} 34. Rc7+ {[%emt 0:00:01]} Bd7 {[%emt 0:00:06]} 35. Rxd7+ {[%emt 0:00:02]} Ke8 {[%emt 0:00:01]} 36. Rh7 {[%emt 0:00:02]} Rxg2 {[%emt 0:00:03]} 37. Bb8 {[%emt 0:00:05]} Rxg4 {[%emt 0:00:01]} 38. Rxh6 {[%emt 0:00:00]} Kf7 {[%emt 0:00:04]} 39. Rh7+ {[%emt 0:00:02]} Kg8 {[%emt 0:00:01]} 40. Rc7 {[%emt 0:00:01]} Ne3 {[%emt 0:00:20]} 41. Rxc6 {[%emt 0:00:01]} Kf7 {[%emt 0:00:00]} 42. Rc7+ {[%emt 0:00:01]} Ke8 {[%emt 0:00:01]} 43. Rc6 {[%emt 0:00:01]} Ke7 {[%emt 0:00:05]} 44. Re6+ {[%emt 0:00:01]} Kf7 {[%emt 0:00:01]} 45. Rxe3 {[%emt 0:00:01]} b4 {[%emt 0:00:06]} 46. cxb4 {[%emt 0:00:01]} Rxd4 {[%emt 0:00:01]} 47. Rb3 {[%emt 0:00:00]} Ke8 {[%emt 0:00:04]} 48. b5 {[%emt 0:00:02]} Kd7 {[%emt 0:00:01]} 49. b6 {[%emt 0:00:01]} Kc8 {[%emt 0:00:01]} 50. Bg3 {[%emt 0:00:02]} Kb7 {[%emt 0:00:00]} 51. Rb5 {[%emt 0:00:03]} 1-0

[Event "11th LCC Super Blitz KO 2019"]
[Site "London"]
[Date "2019.12.08"]
[Round "1.2"]
[White "Praggnanandhaa R"]
[Black "Turner, Matthew J"]
[Result "1/2-1/2"]
[ECO "C54"]
[WhiteElo "2586"]
[BlackElo "2519"]
[Annotator "ChessBase"]
[PlyCount "100"]
[EventDate "2019.12.08"]
[EventType "k.o."]
[EventCountry "ENG"]
[SourceTitle "playchess.com"]
[Source "ChessBase"]
[SourceQuality "1"]
[TimeControl "180+2"]

1. e4 {[%emt 0:00:00]} e5 {[%emt 0:00:00]} 2. Nf3 {[%emt 0:00:01]} Nc6 {[%emt 0:00:00]} 3. Bc4 {[%emt 0:00:02]} Bc5 {[%emt 0:00:02]} 4. d3 {[%emt 0:00:03]} Nf6 {[%emt 0:00:02]} 5. O-O {[%emt 0:00:03]} d6 {[%emt 0:00:01]} 6. c3 {[%emt 0:00:01]} Bb6 {[%emt 0:00:08]} 7. Bb3 {[%emt 0:00:04]} h6 {[%emt 0:00:02]} 8. Nbd2 {[%emt 0:00:03]} O-O {[%emt 0:00:03]} 9. Nc4 {[%emt 0:00:05]} Be6 {[%emt 0:00:01]} 10. a4 {[%emt 0:00:11]} Bxc4 {[%emt 0:00:10]} 11. Bxc4 {[%emt 0:00:02]} a6 {[%emt 0:00:12]} 12. Be3 {[%emt 0:00:09]} Ba7 {[%emt 0:00:48]} 13. b4 {[%emt 0:00:22]} Bxe3 {[%emt 0:00:00]} 14. fxe3 {[%emt 0:00:01]} d5 {[%emt 0:00:00]} 15. exd5 {[%emt 0:00:01]} Nxd5 {[%emt 0:00:00]} 16. Qd2 {[%emt 0:00:25]} Nb6 {[%emt 0:00:09]} 17. Bb3 {[%emt 0:00:04]} e4 {[%emt 0:00:01]} 18. dxe4 {[%emt 0:00:01]} Qxd2 {[%emt 0:00:01]} 19. Nxd2 {[%emt 0:00:01]} Rad8 {[%emt 0:00:00]} 20. Nf3 {[%emt 0:00:44]} Rd3 {[%emt 0:00:04]} 21. b5 {[%emt 0:00:02]} Na5 {[%emt 0:00:13]} 22. Ne5 {[%emt 0:00:12]} Nxb3 {[%emt 0:00:05]} 23. Nxd3 {[%emt 0:00:01]} Nxa1 {[%emt 0:00:01]} 24. Rxa1 {[%emt 0:00:01]} axb5 {[%emt 0:00:13]} 25. axb5 {[%emt 0:00:01]} Re8 {[%emt 0:00:05]} 26. e5 {[%emt 0:00:28]} Rd8 {[%emt 0:00:07]} 27. Nf4 {[%emt 0:00:09]} Nc4 {[%emt 0:00:08]} 28. e6 {[%emt 0:00:05]} fxe6 {[%emt 0:00:18]} 29. Nxe6 {[%emt 0:00:01]} Rd2 {[%emt 0:00:02]} 30. Re1 {[%emt 0:00:09]} c6 {[%emt 0:00:22]} 31. bxc6 {[%emt 0:00:02]} bxc6 {[%emt 0:00:01]} 32. Nd4 {[%emt 0:00:01]} c5 {[%emt 0:00:07]} 33. Nb3 {[%emt 0:00:03]} Rd3 {[%emt 0:00:06]} 34. Nxc5 {[%emt 0:00:06]} Rxc3 {[%emt 0:00:02]} 35. e4 {[%emt 0:00:01]} Ne5 {[%emt 0:00:04]} 36. Ne6 {[%emt 0:00:04]} Rc2 {[%emt 0:00:05]} 37. Nd4 {[%emt 0:00:02]} Ra2 {[%emt 0:00:03]} 38. Re2 {[%emt 0:00:06]} Ra4 {[%emt 0:00:06]} 39. Nf3 {[%emt 0:00:04]} Nd3 {[%emt 0:00:01]} 40. g3 {[%emt 0:00:05]} Kf7 {[%emt 0:00:08]} 41. Kg2 {[%emt 0:00:03]} Ke6 {[%emt 0:00:04]} 42. Rd2 {[%emt 0:00:02]} Ne5 {[%emt 0:00:04]} 43. Nd4+ {[%emt 0:00:02]} Kf6 {[%emt 0:00:04]} 44. h3 {[%emt 0:00:09]} h5 {[%emt 0:00:01]} 45. Rf2+ {[%emt 0:00:01]} Kg6 {[%emt 0:00:02]} 46. Ne6 {[%emt 0:00:04]} Rxe4 {[%emt 0:00:03]} 47. Nf4+ {[%emt 0:00:00]} Kh6 {[%emt 0:00:01]} 48. Ra2 {[%emt 0:00:03]} Rb4 {[%emt 0:00:05]} 49. Re2 {[%emt 0:00:02]} Rb5 {[%emt 0:00:02]} 50. Rd2 {[%emt 0:00:01]} g6 {[%emt 0:00:03]} 1/2-1/2

[Event "11th LCC Super Blitz KO 2019"]
[Site "London"]
[Date "2019.12.08"]
[Round "1.2"]
[White "Petrov, Martin"]
[Black "Speelman, Jon S"]
[Result "1-0"]
[ECO "B12"]
[WhiteElo "2497"]
[BlackElo "2509"]
[Annotator "ChessBase"]
[PlyCount "113"]
[EventDate "2019.12.08"]
[EventType "k.o."]
[EventCountry "ENG"]
[SourceTitle "playchess.com"]
[Source "ChessBase"]
[SourceQuality "1"]
[TimeControl "180+2"]

1. e4 {[%emt 0:00:00]} c6 {[%emt 0:00:00]} 2. d4 {[%emt 0:00:00]} d5 {[%emt 0:00:00]} 3. e5 {[%emt 0:00:01]} Bf5 {[%emt 0:00:00]} 4. Nf3 {[%emt 0:00:01]} e6 {[%emt 0:00:01]} 5. Be2 {[%emt 0:00:01]} Nd7 {[%emt 0:00:01]} 6. O-O {[%emt 0:00:02]} Ne7 {[%emt 0:00:02]} 7. a4 {[%emt 0:00:04]} h6 {[%emt 0:00:02]} 8. a5 {[%emt 0:00:01]} a6 {[%emt 0:00:01]} 9. b4 {[%emt 0:00:01]} g5 {[%emt 0:00:03]} 10. Nc3 {[%emt 0:00:03]} Bg7 {[%emt 0:00:01]} 11. Na4 {[%emt 0:00:06]} Qc7 {[%emt 0:00:03]} 12. Ne1 {[%emt 0:00:27]} O-O {[%emt 0:00:09]} 13. f4 {[%emt 0:00:04]} gxf4 {[%emt 0:00:19]} 14. Bxf4 {[%emt 0:00:02]} Ng6 {[%emt 0:00:02]} 15. Bg3 {[%emt 0:00:01]} Qd8 {[%emt 0:00:01]} 16. Ra3 {[%emt 0:00:38]} f6 {[%emt 0:00:02]} 17. exf6 {[%emt 0:00:05]} Nxf6 {[%emt 0:00:07]} 18. Nc5 {[%emt 0:00:01]} Qe7 {[%emt 0:00:01]} 19. Bd3 {[%emt 0:00:03]} Ne4 {[%emt 0:00:07]} 20. Nf3 {[%emt 0:00:05]} Nxc5 {[%emt 0:00:05]} 21. bxc5 {[%emt 0:00:02]} Rf7 {[%emt 0:00:16]} 22. Bd6 {[%emt 0:00:05]} Qd7 {[%emt 0:00:01]} 23. Bxf5 {[%emt 0:00:09]} Rxf5 {[%emt 0:00:01]} 24. Re3 {[%emt 0:00:07]} Re8 {[%emt 0:00:08]} 25. Rfe1 {[%emt 0:00:10]} Qf7 {[%emt 0:00:04]} 26. c3 {[%emt 0:00:05]} Bf8 {[%emt 0:00:03]} 27. Bxf8 {[%emt 0:00:05]} Kxf8 {[%emt 0:00:02]} 28. Ne5 {[%emt 0:00:08]} Nxe5 {[%emt 0:00:02]} 29. Rxe5 {[%emt 0:00:01]} Rxe5 {[%emt 0:00:06]} 30. Rxe5 {[%emt 0:00:18]} Ke7 {[%emt 0:00:01]} 31. Re3 {[%emt 0:00:13]} Rf8 {[%emt 0:00:06]} 32. Qe2 {[%emt 0:00:02]} Kd7 {[%emt 0:00:01]} 33. h3 {[%emt 0:00:01]} Qg6 {[%emt 0:00:08]} 34. Kh2 {[%emt 0:00:02]} Rf6 {[%emt 0:00:04]} 35. Rg3 {[%emt 0:00:03]} Qf5 {[%emt 0:00:06]} 36. Qb2 {[%emt 0:00:04]} Kc8 {[%emt 0:00:03]} 37. Qe2 {[%emt 0:00:19]} Qf4 {[%emt 0:00:04]} 38. Qd3 {[%emt 0:00:01]} Rf5 {[%emt 0:00:17]} 39. Qe3 {[%emt 0:00:01]} Qxe3 {[%emt 0:00:02]} 40. Rxe3 {[%emt 0:00:01]} Kd7 {[%emt 0:00:02]} 41. Kg1 {[%emt 0:00:07]} Ke7 {[%emt 0:00:03]} 42. g4 {[%emt 0:00:05]} Rf4 {[%emt 0:00:04]} 43. Kg2 {[%emt 0:00:01]} Rf7 {[%emt 0:00:15]} 44. Re2 {[%emt 0:00:02]} Rg7 {[%emt 0:00:02]} 45. Re5 {[%emt 0:00:02]} Rg6 {[%emt 0:00:04]} 46. Kg3 {[%emt 0:00:02]} Rf6 {[%emt 0:00:01]} 47. Re1 {[%emt 0:00:02]} Kf7 {[%emt 0:00:02]} 48. Rb1 {[%emt 0:00:01]} Kg6 {[%emt 0:00:02]} 49. Rxb7 {[%emt 0:00:01]} Rf1 {[%emt 0:00:01]} 50. Rb6 {[%emt 0:00:02]} Rc1 {[%emt 0:00:01]} 51. Kh4 {[%emt 0:00:04]} Rxc3 {[%emt 0:00:02]} 52. Rxc6 {[%emt 0:00:01]} Kf6 {[%emt 0:00:01]} 53. Rxa6 {[%emt 0:00:05]} Rc4 {[%emt 0:00:01]} 54. Ra8 {[%emt 0:00:07]} Rxd4 {[%emt 0:00:06]} 55. a6 Ra4 {[%emt 0:00:02]} 56. a7 {[%emt 0:00:02]} Kg7 {[%emt 0:00:03]} 57. c6 {[%emt 0:00:01]} 1-0

[Event "11th LCC Super Blitz KO 2019"]
[Site "London"]
[Date "2019.12.08"]
[Round "1.2"]
[White "Arkell, Keith C"]
[Black "Grover, Sahaj"]
[Result "0-1"]
[ECO "D38"]
[WhiteElo "2453"]
[BlackElo "2508"]
[Annotator "ChessBase"]
[PlyCount "76"]
[EventDate "2019.12.08"]
[EventType "k.o."]
[EventCountry "ENG"]
[SourceTitle "playchess.com"]
[Source "ChessBase"]
[SourceQuality "1"]
[TimeControl "180+2"]

1. d4 {[%emt 0:00:00]} d5 {[%emt 0:00:00]} 2. Nf3 {[%emt 0:00:01]} Nf6 {[%emt 0:00:00]} 3. c4 {[%emt 0:00:01]} e6 {[%emt 0:00:00]} 4. cxd5 {[%emt 0:00:01]} exd5 {[%emt 0:00:02]} 5. Nc3 {[%emt 0:00:01]} Bb4 {[%emt 0:00:05]} 6. Qa4+ {[%emt 0:00:01]} Nc6 {[%emt 0:00:01]} 7. Bg5 {[%emt 0:00:01]} h6 {[%emt 0:00:01]} 8. Bxf6 {[%emt 0:00:02]} Qxf6 {[%emt 0:00:01]} 9. e3 {[%emt 0:00:00]} O-O {[%emt 0:00:13]} 10. Be2 {[%emt 0:00:02]} Be6 {[%emt 0:00:30]} 11. a3 {[%emt 0:00:06]} Bxc3+ {[%emt 0:00:05]} 12. bxc3 {[%emt 0:00:01]} Ne7 {[%emt 0:00:02]} 13. c4 {[%emt 0:00:11]} c5 {[%emt 0:00:09]} 14. O-O {[%emt 0:00:10]} Rfc8 {[%emt 0:00:18]} 15. Rfc1 {[%emt 0:00:41]} b6 {[%emt 0:00:37]} 16. cxd5 {[%emt 0:00:29]} Nxd5 {[%emt 0:00:06]} 17. Ba6 {[%emt 0:00:03]} Rc7 {[%emt 0:00:04]} 18. Qd1 {[%emt 0:00:15]} Bg4 {[%emt 0:00:18]} 19. dxc5 {[%emt 0:00:11]} Bxf3 {[%emt 0:00:17]} 20. Qxf3 {[%emt 0:00:03]} Qxf3 {[%emt 0:00:01]} 21. gxf3 {[%emt 0:00:01]} bxc5 {[%emt 0:00:01]} 22. Rc2 {[%emt 0:00:07]} Rb8 {[%emt 0:00:18]} 23. Rac1 {[%emt 0:00:04]} Rb6 {[%emt 0:00:00]} 24. Bc4 {[%emt 0:00:01]} Nf6 {[%emt 0:00:13]} 25. Be2 {[%emt 0:00:06]} Nd7 {[%emt 0:00:04]} 26. f4 {[%emt 0:00:04]} Kf8 {[%emt 0:00:01]} 27. Bg4 {[%emt 0:00:03]} Rg6 {[%emt 0:00:01]} 28. f3 {[%emt 0:00:07]} f5 {[%emt 0:00:01]} 29. h3 {[%emt 0:00:24]} h5 {[%emt 0:00:01]} 30. e4 {[%emt 0:00:08]} fxg4 {[%emt 0:00:02]} 31. f5 {[%emt 0:00:00]} Ra6 {[%emt 0:00:04]} 32. hxg4 {[%emt 0:00:02]} hxg4 {[%emt 0:00:01]} 33. fxg4 {[%emt 0:00:02]} Rxa3 34. Kf2 {[%emt 0:00:01]} Ne5 {[%emt 0:00:02]} 35. Kg2 {[%emt 0:00:06]} c4 {[%emt 0:00:02]} 36. g5 {[%emt 0:00:01]} Re3 {[%emt 0:00:03]} 37. Rh1 {[%emt 0:00:11]} Rxe4 {[%emt 0:00:02]} 38. g6 {[%emt 0:00:05]} Ke7 {[%emt 0:00:11]} 0-1